[Event "Titled Tuesday Blitz June 21 Early 2022"]
[White "Rios Escobar, Adan"]
[Black "Yaksin, Oleg"]
[WhiteFideId "3403645"]
[BlackFideId "24105880"]
[WhiteElo "2446"]
[BlackElo "2256"]
[Result "0-1"]
[Round "04"]
[TimeControl "180+1"]
[Date "2022.06.21"]
[WhiteClock "0:00:03"]
[BlackClock "0:00:15"]

1. d4 {[%clk 0:02:53]}  Nf6 {[%clk 0:02:58]} 2. g3 {[%clk 0:02:53]}  e6 {[%clk 0:02:56]} 3. c4 {[%clk 0:02:52]}  d5 {[%clk 0:02:55]} 4. Nf3 {[%clk 0:02:53]}  dxc4 {[%clk 0:02:54]} 5. Bg2 {[%clk 0:02:53]}  a6 {[%clk 0:02:54]} 6. O-O {[%clk 0:02:49]}  Nc6 {[%clk 0:02:54]} 7. e3 {[%clk 0:02:37]}  Rb8 {[%clk 0:02:49]} 8. Nfd2 {[%clk 0:02:37]}  e5 {[%clk 0:02:47]} 9. Nxc4 {[%clk 0:02:27]}  exd4 {[%clk 0:02:44]} 10. exd4 {[%clk 0:02:24]}  Nxd4 {[%clk 0:02:42]} 11. Re1+ {[%clk 0:02:22]}  Be7 {[%clk 0:02:42]} 12. Bg5 {[%clk 0:01:53]}  Be6 {[%clk 0:02:18]} 13. Ne5 {[%clk 0:01:48]}  O-O {[%clk 0:02:13]} 14. Nc3 {[%clk 0:01:48]}  c5 {[%clk 0:02:11]} 15. Rc1 {[%clk 0:01:47]}  b5 {[%clk 0:02:07]} 16. h3 {[%clk 0:01:46]}  Qb6 {[%clk 0:01:51]} 17. Ne2 {[%clk 0:01:43]}  Rbd8 {[%clk 0:01:34]} 18. Nxd4 {[%clk 0:01:38]}  Rxd4 {[%clk 0:01:35]} 19. Qe2 {[%clk 0:01:38]}  Nd5 {[%clk 0:01:22]} 20. Bxe7 {[%clk 0:01:13]}  Nxe7 {[%clk 0:01:23]} 21. Nf3 {[%clk 0:01:13]}  Rd6 {[%clk 0:01:19]} 22. Qe3 {[%clk 0:01:05]}  c4 {[%clk 0:01:09]} 23. Qf4 {[%clk 0:00:50]}  Nd5 {[%clk 0:01:00]} 24. Qh4 {[%clk 0:00:50]}  h6 {[%clk 0:00:55]} 25. Nd4 {[%clk 0:00:48]}  Nf6 {[%clk 0:00:52]} 26. Nxe6 {[%clk 0:00:37]}  Rxe6 {[%clk 0:00:50]} 27. Rxe6 {[%clk 0:00:23]}  Qxe6 {[%clk 0:00:51]} 28. Qd4 {[%clk 0:00:24]}  Re8 {[%clk 0:00:44]} 29. a4 {[%clk 0:00:19]}  Qe5 {[%clk 0:00:36]} 30. Qxe5 {[%clk 0:00:18]}  Rxe5 {[%clk 0:00:37]} 31. a5 {[%clk 0:00:17]}  Re2 {[%clk 0:00:33]} 32. Rb1 {[%clk 0:00:13]}  Nd7 {[%clk 0:00:31]} 33. Bb7 {[%clk 0:00:09]}  Nc5 {[%clk 0:00:30]} 34. Bf3 {[%clk 0:00:07]}  Rd2 {[%clk 0:00:28]} 35. h4 {[%clk 0:00:05]}  Nb3 {[%clk 0:00:26]} 36. Bb7 {[%clk 0:00:04]}  Rd6 {[%clk 0:00:23]} 37. Ra1 {[%clk 0:00:03]}  Nxa1 {[%clk 0:00:22]} 38. Kg2 {[%clk 0:00:02]}  Nb3 {[%clk 0:00:21]} 39. h5 {[%clk 0:00:01]}  Nxa5 {[%clk 0:00:21]} 40. Be4 {[%clk 0:00:02]}  b4 {[%clk 0:00:20]} 41. Bb1 {[%clk 0:00:02]}  c3 {[%clk 0:00:20]} 42. g4 {[%clk 0:00:03]}  cxb2 {[%clk 0:00:20]} 43. g5 {[%clk 0:00:04]}  hxg5 {[%clk 0:00:18]} 44. f4 {[%clk 0:00:04]}  gxf4 {[%clk 0:00:17]} 45. h6 {[%clk 0:00:04]}  gxh6 {[%clk 0:00:17]} 46. Kf3 {[%clk 0:00:05]}  Rd1 {[%clk 0:00:17]} 47. Ba2 {[%clk 0:00:05]}  Ra1 {[%clk 0:00:17]} 48. Bb1 {[%clk 0:00:03]}  Rxb1 {[%clk 0:00:17]} 49. Kg4 {[%clk 0:00:03]}  Re1 {[%clk 0:00:15]} 50. Kf5 {[%clk 0:00:02]}  b1=Q+ {[%clk 0:00:15]} 51. Kf6 {[%clk 0:00:03]}  Qg6# {[%clk 0:00:15]} 0-1


[Site "https://www.chess.com"]

[Event "Titled Tuesday Blitz June 21 Early 2022"]
[White "Rosenberg, Evan S"]
[Black "Mindlin, Alon"]
[WhiteFideId "2019299"]
[BlackFideId "2800071"]
[WhiteElo "2387"]
[BlackElo "2390"]
[Result "0-1"]
[Round "04"]
[TimeControl "180+1"]
[Date "2022.06.21"]
[WhiteClock "0:00:05"]
[BlackClock "0:00:25"]

1. e4 {[%clk 0:03:00]}  e5 {[%clk 0:02:59]} 2. Bc4 {[%clk 0:03:00]}  Nf6 {[%clk 0:02:59]} 3. d3 {[%clk 0:03:00]}  c6 {[%clk 0:02:57]} 4. Nf3 {[%clk 0:02:59]}  d5 {[%clk 0:02:57]} 5. Bb3 {[%clk 0:02:50]}  Bd6 {[%clk 0:02:55]} 6. O-O {[%clk 0:02:48]}  O-O {[%clk 0:02:52]} 7. Bg5 {[%clk 0:02:47]}  dxe4 {[%clk 0:02:50]} 8. dxe4 {[%clk 0:02:45]}  h6 {[%clk 0:02:50]} 9. Bh4 {[%clk 0:02:41]}  Qe7 {[%clk 0:02:49]} 10. Qe2 {[%clk 0:02:33]}  Na6 {[%clk 0:02:47]} 11. Nbd2 {[%clk 0:02:19]}  Nc5 {[%clk 0:02:44]} 12. Rad1 {[%clk 0:02:16]}  Bg4 {[%clk 0:02:37]} 13. h3 {[%clk 0:02:15]}  Bh5 {[%clk 0:02:37]} 14. Rfe1 {[%clk 0:02:00]}  Rad8 {[%clk 0:02:33]} 15. Qe3 {[%clk 0:01:52]}  a5 {[%clk 0:02:15]} 16. g4 {[%clk 0:01:26]}  Bg6 {[%clk 0:02:14]} 17. g5 {[%clk 0:01:26]}  hxg5 {[%clk 0:02:09]} 18. Qxg5 {[%clk 0:01:18]}  Nxb3 {[%clk 0:01:58]} 19. axb3 {[%clk 0:01:10]}  Qe6 {[%clk 0:01:57]} 20. Kg2 {[%clk 0:00:59]}  Nh5 {[%clk 0:01:55]} 21. Bg3 {[%clk 0:00:50]}  Rfe8 {[%clk 0:01:15]} 22. Nc4 {[%clk 0:00:48]}  Nxg3 {[%clk 0:01:15]} 23. Qxg3 {[%clk 0:00:39]}  Bc7 {[%clk 0:01:12]} 24. h4 {[%clk 0:00:17]}  Rxd1 {[%clk 0:01:10]} 25. Rxd1 {[%clk 0:00:17]}  Bxe4 {[%clk 0:01:11]} 26. Re1 {[%clk 0:00:16]}  Bd5 {[%clk 0:01:09]} 27. Ne3 {[%clk 0:00:14]}  e4 {[%clk 0:01:01]} 28. Qxc7 {[%clk 0:00:14]}  exf3+ {[%clk 0:01:02]} 29. Kh1 {[%clk 0:00:12]}  Qh3+ {[%clk 0:01:01]} 30. Qh2 {[%clk 0:00:12]}  Qe6 {[%clk 0:00:50]} 31. Kg1 {[%clk 0:00:11]}  Qf6 {[%clk 0:00:44]} 32. c3 {[%clk 0:00:09]}  Re4 {[%clk 0:00:44]} 33. Nc2 {[%clk 0:00:07]}  Qg6+ {[%clk 0:00:42]} 34. Kf1 {[%clk 0:00:05]}  Re2 {[%clk 0:00:36]} 35. Ne3 {[%clk 0:00:04]}  Qd3 {[%clk 0:00:31]} 36. Qb8+ {[%clk 0:00:03]}  Kh7 {[%clk 0:00:31]} 37. Rxe2 {[%clk 0:00:03]}  Qxe2+ {[%clk 0:00:30]} 38. Kg1 {[%clk 0:00:03]}  Qe1+ {[%clk 0:00:30]} 39. Nf1 {[%clk 0:00:03]}  Qe4 {[%clk 0:00:29]} 40. Qg3 {[%clk 0:00:03]}  Be6 {[%clk 0:00:27]} 41. Nd2 {[%clk 0:00:02]}  Qe1+ {[%clk 0:00:27]} 42. Nf1 {[%clk 0:00:03]}  Bxb3 {[%clk 0:00:27]} 43. Qxf3 {[%clk 0:00:03]}  Bc4 {[%clk 0:00:28]} 44. Qf5+ {[%clk 0:00:02]}  g6 {[%clk 0:00:27]} 45. Qh3 {[%clk 0:00:02]}  a4 {[%clk 0:00:21]} 46. h5 {[%clk 0:00:02]}  Qxf1+ {[%clk 0:00:22]} 47. Qxf1 {[%clk 0:00:02]}  Bxf1 {[%clk 0:00:23]} 48. Kxf1 {[%clk 0:00:03]}  gxh5 {[%clk 0:00:22]} 49. Ke2 {[%clk 0:00:03]}  Kg6 {[%clk 0:00:23]} 50. Kd3 {[%clk 0:00:03]}  Kf5 {[%clk 0:00:23]} 51. Ke3 {[%clk 0:00:04]}  b5 {[%clk 0:00:22]} 52. Kf3 {[%clk 0:00:04]}  c5 {[%clk 0:00:23]} 53. Kg3 {[%clk 0:00:04]}  b4 {[%clk 0:00:23]} 54. cxb4 {[%clk 0:00:05]}  cxb4 {[%clk 0:00:24]} 55. Kh4 {[%clk 0:00:05]}  a3 {[%clk 0:00:25]} 0-1


[Site "https://www.chess.com"]

[Event "Titled Tuesday Blitz June 21 Early 2022"]
[White "Sailer, Mike"]
[Black "Warchol, Kamil"]
[WhiteFideId "2012901"]
[BlackFideId "21858241"]
[WhiteElo "2109"]
[BlackElo "1951"]
[Result "0-1"]
[Round "04"]
[TimeControl "180+1"]
[Date "2022.06.21"]
[WhiteClock "0:00:14"]
[BlackClock "0:00:33"]

1. d4 {[%clk 0:03:00]}  Nf6 {[%clk 0:02:58]} 2. Nf3 {[%clk 0:02:58]}  d5 {[%clk 0:02:48]} 3. Bf4 {[%clk 0:02:52]}  c5 {[%clk 0:02:47]} 4. e3 {[%clk 0:02:50]}  Nc6 {[%clk 0:02:45]} 5. Nc3 {[%clk 0:02:49]}  Bf5 {[%clk 0:02:24]} 6. Be2 {[%clk 0:02:40]}  Rc8 {[%clk 0:02:20]} 7. O-O {[%clk 0:02:33]}  h6 {[%clk 0:02:17]} 8. Ne5 {[%clk 0:02:24]}  e6 {[%clk 0:02:14]} 9. Nxc6 {[%clk 0:02:17]}  bxc6 {[%clk 0:01:55]} 10. Ba6 {[%clk 0:02:16]}  Rc7 {[%clk 0:01:54]} 11. Bxc7 {[%clk 0:02:13]}  Qxc7 {[%clk 0:01:55]} 12. Bd3 {[%clk 0:02:13]}  Bg4 {[%clk 0:01:29]} 13. f3 {[%clk 0:02:03]}  Bh5 {[%clk 0:01:28]} 14. Qe1 {[%clk 0:01:42]}  c4 {[%clk 0:01:20]} 15. Be2 {[%clk 0:01:42]}  Bd6 {[%clk 0:01:19]} 16. f4 {[%clk 0:01:38]}  Bg6 {[%clk 0:01:18]} 17. Qh4 {[%clk 0:01:16]}  Bxc2 {[%clk 0:01:08]} 18. Bg4 {[%clk 0:00:56]}  O-O {[%clk 0:00:56]} 19. Rf3 {[%clk 0:00:53]}  Bg6 {[%clk 0:00:54]} 20. Rh3 {[%clk 0:00:47]}  Nxg4 {[%clk 0:00:52]} 21. Qxg4 {[%clk 0:00:45]}  Bf5 {[%clk 0:00:52]} 22. Qh4 {[%clk 0:00:42]}  Bxh3 {[%clk 0:00:51]} 23. Qxh3 {[%clk 0:00:34]}  Rb8 {[%clk 0:00:50]} 24. Rb1 {[%clk 0:00:25]}  Bb4 {[%clk 0:00:47]} 25. Nd1 {[%clk 0:00:24]}  Qa5 {[%clk 0:00:44]} 26. a3 {[%clk 0:00:24]}  Bxa3 {[%clk 0:00:35]} 27. f5 {[%clk 0:00:14]}  Qe1# {[%clk 0:00:33]} 0-1


[Site "https://www.chess.com"]

[Event "Titled Tuesday Blitz June 21 Early 2022"]
[White "Samadov, Read"]
[Black "Fier, Alexandr"]
[WhiteFideId "13417444"]
[BlackFideId "2107139"]
[WhiteElo "2084"]
[BlackElo "2571"]
[Result "0-1"]
[Round "04"]
[TimeControl "180+1"]
[Date "2022.06.21"]
[WhiteClock "0:00:04"]
[BlackClock "0:01:35"]

1. d4 {[%clk 0:03:00]}  Nf6 {[%clk 0:02:58]} 2. c4 {[%clk 0:03:01]}  c5 {[%clk 0:02:57]} 3. d5 {[%clk 0:03:01]}  e6 {[%clk 0:02:58]} 4. Nc3 {[%clk 0:03:00]}  exd5 {[%clk 0:02:58]} 5. cxd5 {[%clk 0:03:01]}  d6 {[%clk 0:02:59]} 6. e4 {[%clk 0:03:02]}  g6 {[%clk 0:02:59]} 7. f4 {[%clk 0:03:02]}  Bg7 {[%clk 0:03:00]} 8. Nf3 {[%clk 0:03:03]}  O-O {[%clk 0:03:00]} 9. Be2 {[%clk 0:03:04]}  Re8 {[%clk 0:02:59]} 10. e5 {[%clk 0:03:04]}  dxe5 {[%clk 0:02:58]} 11. fxe5 {[%clk 0:03:04]}  Ng4 {[%clk 0:02:58]} 12. e6 {[%clk 0:03:05]}  fxe6 {[%clk 0:02:57]} 13. d6 {[%clk 0:03:05]}  Nc6 {[%clk 0:02:58]} 14. O-O {[%clk 0:03:05]}  Bd7 {[%clk 0:02:51]} 15. Bg5 {[%clk 0:03:05]}  Qb6 {[%clk 0:02:51]} 16. Na4 {[%clk 0:03:04]}  Qa5 {[%clk 0:02:46]} 17. Bd2 {[%clk 0:02:52]}  Nb4 {[%clk 0:02:46]} 18. a3 {[%clk 0:02:14]}  Bxa4 {[%clk 0:02:46]} 19. b3 {[%clk 0:01:47]}  Qb6 {[%clk 0:02:38]} 20. axb4 {[%clk 0:01:27]}  cxb4+ {[%clk 0:02:38]} 21. Kh1 {[%clk 0:01:27]}  Bc6 {[%clk 0:02:38]} 22. Bg5 {[%clk 0:00:59]}  Nf2+ {[%clk 0:02:23]} 23. Rxf2 {[%clk 0:00:59]}  Qxf2 {[%clk 0:02:24]} 24. Rc1 {[%clk 0:00:53]}  Bc3 {[%clk 0:02:12]} 25. Bc4 {[%clk 0:00:38]}  Bxf3 {[%clk 0:02:00]} 26. gxf3 {[%clk 0:00:35]}  Be5 {[%clk 0:02:00]} 27. Rc2 {[%clk 0:00:34]}  Qd4 {[%clk 0:01:59]} 28. Rd2 {[%clk 0:00:34]}  Qc5 {[%clk 0:01:54]} 29. d7 {[%clk 0:00:34]}  Red8 {[%clk 0:01:53]} 30. Bxe6+ {[%clk 0:00:35]}  Kg7 {[%clk 0:01:51]} 31. Rd5 {[%clk 0:00:34]}  Qc3 {[%clk 0:01:51]} 32. Bxd8 {[%clk 0:00:30]}  Rxd8 {[%clk 0:01:52]} 33. Qe2 {[%clk 0:00:24]}  Bf6 {[%clk 0:01:52]} 34. Rd3 {[%clk 0:00:24]}  Qc1+ {[%clk 0:01:52]} 35. Kg2 {[%clk 0:00:24]}  a5 {[%clk 0:01:51]} 36. Bc4 {[%clk 0:00:21]}  b5 {[%clk 0:01:48]} 37. Bd5 {[%clk 0:00:10]}  Rxd7 {[%clk 0:01:45]} 38. Qe6 {[%clk 0:00:08]}  Re7 {[%clk 0:01:32]} 39. Qg8+ {[%clk 0:00:08]}  Kh6 {[%clk 0:01:33]} 40. Qf8+ {[%clk 0:00:08]}  Kh5 {[%clk 0:01:33]} 41. Qxf6 {[%clk 0:00:05]}  Re2+ {[%clk 0:01:34]} 42. Kg3 {[%clk 0:00:04]}  Qg1+ {[%clk 0:01:35]} 43. Kf4 {[%clk 0:00:04]}  Qxh2# {[%clk 0:01:35]} 0-1


[Site "https://www.chess.com"]

[Event "Titled Tuesday Blitz June 21 Early 2022"]
[White "Samunenkov, Ihor"]
[Black "Manukian, Artak"]
[WhiteFideId "14187086"]
[BlackFideId "13301373"]
[WhiteElo "2409"]
[BlackElo "2474"]
[Result "1-0"]
[Round "04"]
[TimeControl "180+1"]
[Date "2022.06.21"]
[WhiteClock "0:01:47"]
[BlackClock "0:01:47"]

1. d4 {[%clk 0:03:00]}  Nf6 {[%clk 0:02:58]} 2. c4 {[%clk 0:03:01]}  e6 {[%clk 0:02:58]} 3. Nc3 {[%clk 0:02:58]}  Bb4 {[%clk 0:02:58]} 4. e3 {[%clk 0:02:58]}  O-O {[%clk 0:02:56]} 5. Bd2 {[%clk 0:02:58]}  d5 {[%clk 0:02:54]} 6. Nf3 {[%clk 0:02:58]}  c5 {[%clk 0:02:52]} 7. a3 {[%clk 0:02:53]}  Bxc3 {[%clk 0:02:48]} 8. Bxc3 {[%clk 0:02:54]}  Ne4 {[%clk 0:02:47]} 9. Rc1 {[%clk 0:02:54]}  b6 {[%clk 0:02:40]} 10. dxc5 {[%clk 0:02:49]}  Nxc3 {[%clk 0:02:39]} 11. Rxc3 {[%clk 0:02:48]}  bxc5 {[%clk 0:02:32]} 12. cxd5 {[%clk 0:02:48]}  exd5 {[%clk 0:02:31]} 13. Rxc5 {[%clk 0:02:46]}  Qb6 {[%clk 0:02:31]} 14. Rb5 {[%clk 0:02:40]}  Qf6 {[%clk 0:02:30]} 15. Qd4 {[%clk 0:02:10]}  Qg6 {[%clk 0:02:16]} 16. Bd3 {[%clk 0:02:09]}  Bf5 {[%clk 0:02:11]} 17. Nh4 {[%clk 0:02:00]}  Bxd3 {[%clk 0:02:03]} 18. Nxg6 {[%clk 0:02:00]}  Bxg6 {[%clk 0:02:01]} 19. Rxd5 {[%clk 0:01:49]}  Nc6 {[%clk 0:01:59]} 20. Qc5 {[%clk 0:01:49]}  Rac8 {[%clk 0:01:57]} 21. O-O {[%clk 0:01:49]}  Ne5 {[%clk 0:01:54]} 22. Rxe5 {[%clk 0:01:46]}  Rxc5 {[%clk 0:01:54]} 23. Rxc5 {[%clk 0:01:47]}  a6 {[%clk 0:01:50]} 24. Rfc1 {[%clk 0:01:47]}  h5 {[%clk 0:01:47]} 25. Rc8 {[%clk 0:01:47]} 1-0


[Site "https://www.chess.com"]

[Event "Titled Tuesday Blitz June 21 Early 2022"]
[White "Sarana, Alexey"]
[Black "Bluebaum, Matthias"]
[WhiteFideId "24133795"]
[BlackFideId "24651516"]
[WhiteElo "2666"]
[BlackElo "2556"]
[Result "0-1"]
[Round "04"]
[TimeControl "180+1"]
[Date "2022.06.21"]
[WhiteClock "0:00:01"]
[BlackClock "0:00:17"]

1. d4 {[%clk 0:03:00]}  Nf6 {[%clk 0:03:00]} 2. c4 {[%clk 0:03:01]}  e6 {[%clk 0:03:00]} 3. Nc3 {[%clk 0:03:01]}  d5 {[%clk 0:03:01]} 4. cxd5 {[%clk 0:03:01]}  exd5 {[%clk 0:03:01]} 5. Bg5 {[%clk 0:03:02]}  c6 {[%clk 0:03:02]} 6. e3 {[%clk 0:03:02]}  h6 {[%clk 0:03:02]} 7. Bh4 {[%clk 0:03:01]}  Be7 {[%clk 0:03:03]} 8. Bd3 {[%clk 0:03:01]}  O-O {[%clk 0:03:03]} 9. Nge2 {[%clk 0:02:57]}  Re8 {[%clk 0:03:03]} 10. O-O {[%clk 0:02:56]}  a5 {[%clk 0:03:03]} 11. f3 {[%clk 0:02:53]}  b5 {[%clk 0:02:59]} 12. Rc1 {[%clk 0:02:52]}  Nbd7 {[%clk 0:02:57]} 13. Bb1 {[%clk 0:02:40]}  Nb6 {[%clk 0:02:50]} 14. e4 {[%clk 0:01:58]}  dxe4 {[%clk 0:02:13]} 15. fxe4 {[%clk 0:01:48]}  b4 {[%clk 0:02:12]} 16. e5 {[%clk 0:01:48]}  Ng4 {[%clk 0:01:56]} 17. Qd3 {[%clk 0:00:53]}  Bxh4 {[%clk 0:01:26]} 18. Qh7+ {[%clk 0:00:53]}  Kf8 {[%clk 0:01:27]} 19. Rxf7+ {[%clk 0:00:51]}  Kxf7 {[%clk 0:01:27]} 20. Bg6+ {[%clk 0:00:51]}  Ke6 {[%clk 0:01:17]} 21. Bf5+ {[%clk 0:00:49]}  Kf7 {[%clk 0:01:15]} 22. Bg6+ {[%clk 0:00:47]}  Ke6 {[%clk 0:01:15]} 23. Ne4 {[%clk 0:00:31]}  Kd7 {[%clk 0:01:02]} 24. Bxe8+ {[%clk 0:00:10]}  Qxe8 {[%clk 0:01:02]} 25. Qxg7+ {[%clk 0:00:09]}  Qe7 {[%clk 0:00:51]} 26. Qxg4+ {[%clk 0:00:09]}  Kc7 {[%clk 0:00:52]} 27. Qf3 {[%clk 0:00:10]}  Bd7 {[%clk 0:00:36]} 28. Nd6 {[%clk 0:00:10]}  Rf8 {[%clk 0:00:34]} 29. Qd3 {[%clk 0:00:10]}  Qg5 {[%clk 0:00:28]} 30. Qa6 {[%clk 0:00:06]}  Qe3+ {[%clk 0:00:20]} 31. Kh1 {[%clk 0:00:06]}  Nd5 {[%clk 0:00:18]} 32. Qxa5+ {[%clk 0:00:01]}  Kb8 {[%clk 0:00:19]} 33. Rg1 {[%clk 0:00:01]}  Qxe2 {[%clk 0:00:17]} 0-1


[Site "https://www.chess.com"]

[Event "Titled Tuesday Blitz June 21 Early 2022"]
[White "Sargsyan, Anna M."]
[Black "Samsonkin, Artiom"]
[WhiteFideId "13308130"]
[BlackFideId "13503111"]
[WhiteElo "2271"]
[BlackElo "2513"]
[Result "1-0"]
[Round "04"]
[TimeControl "180+1"]
[Date "2022.06.21"]
[WhiteClock "0:01:19"]
[BlackClock "0:00:01"]

1. d4 {[%clk 0:03:00]}  d5 {[%clk 0:02:59]} 2. c4 {[%clk 0:03:01]}  dxc4 {[%clk 0:02:59]} 3. Nf3 {[%clk 0:02:59]}  Nf6 {[%clk 0:02:57]} 4. e3 {[%clk 0:02:58]}  a6 {[%clk 0:02:52]} 5. Bxc4 {[%clk 0:02:59]}  b5 {[%clk 0:02:51]} 6. Bd3 {[%clk 0:02:59]}  Bb7 {[%clk 0:02:51]} 7. O-O {[%clk 0:02:59]}  e6 {[%clk 0:02:44]} 8. Qe2 {[%clk 0:03:00]}  Nbd7 {[%clk 0:02:43]} 9. a4 {[%clk 0:02:57]}  b4 {[%clk 0:02:43]} 10. Nbd2 {[%clk 0:02:58]}  c5 {[%clk 0:02:41]} 11. Nc4 {[%clk 0:02:58]}  Be7 {[%clk 0:02:40]} 12. Rd1 {[%clk 0:02:58]}  Qc7 {[%clk 0:02:40]} 13. Bd2 {[%clk 0:02:58]}  O-O {[%clk 0:02:37]} 14. Nfe5 {[%clk 0:02:59]}  Nxe5 {[%clk 0:02:25]} 15. Nxe5 {[%clk 0:03:00]}  cxd4 {[%clk 0:02:19]} 16. exd4 {[%clk 0:02:59]}  Rfd8 {[%clk 0:02:19]} 17. Rac1 {[%clk 0:02:51]}  Qa5 {[%clk 0:02:11]} 18. Be3 {[%clk 0:02:19]}  Qxa4 {[%clk 0:02:01]} 19. Rc7 {[%clk 0:02:13]}  Bd5 {[%clk 0:00:19]} 20. Rxe7 {[%clk 0:02:11]}  a5 {[%clk 0:00:19]} 21. Rxf7 {[%clk 0:02:05]}  Rf8 {[%clk 0:00:16]} 22. Rxf8+ {[%clk 0:01:52]}  Rxf8 {[%clk 0:00:16]} 23. Rc1 {[%clk 0:01:49]}  Qb3 {[%clk 0:00:14]} 24. Bc2 {[%clk 0:01:31]}  Qa2 {[%clk 0:00:15]} 25. Bg5 {[%clk 0:01:28]}  Kh8 {[%clk 0:00:09]} 26. Bxf6 {[%clk 0:01:27]}  gxf6 {[%clk 0:00:04]} 27. Qh5 {[%clk 0:01:27]}  f5 {[%clk 0:00:02]} 28. Ng6+ {[%clk 0:01:24]}  Kg7 {[%clk 0:00:02]} 29. Nxf8 {[%clk 0:01:25]}  Qxb2 {[%clk 0:00:03]} 30. Qxh7+ {[%clk 0:01:18]}  Kxf8 {[%clk 0:00:03]} 31. Qh6+ {[%clk 0:01:18]}  Ke7 {[%clk 0:00:03]} 32. Bxf5 {[%clk 0:01:18]}  exf5 {[%clk 0:00:01]} 33. Rc7+ {[%clk 0:01:19]} 1-0


[Site "https://www.chess.com"]

[Event "Titled Tuesday Blitz June 21 Early 2022"]
[White "Sethuraman, S.P."]
[Black "Rohith Krishna S"]
[WhiteFideId "5021596"]
[BlackFideId "46617051"]
[WhiteElo "2473"]
[BlackElo "2117"]
[Result "0-1"]
[Round "04"]
[TimeControl "180+1"]
[Date "2022.06.21"]
[WhiteClock "0:00:01"]
[BlackClock "0:00:18"]

1. d4 {[%clk 0:03:00]}  Nf6 {[%clk 0:02:59]} 2. c4 {[%clk 0:03:01]}  e6 {[%clk 0:02:59]} 3. Nc3 {[%clk 0:03:01]}  Bb4 {[%clk 0:03:00]} 4. Nf3 {[%clk 0:03:00]}  O-O {[%clk 0:02:59]} 5. Bg5 {[%clk 0:03:00]}  h6 {[%clk 0:02:59]} 6. Bh4 {[%clk 0:03:00]}  d5 {[%clk 0:02:59]} 7. e3 {[%clk 0:02:52]}  Nbd7 {[%clk 0:02:59]} 8. cxd5 {[%clk 0:02:52]}  exd5 {[%clk 0:02:58]} 9. Qc2 {[%clk 0:02:51]}  c6 {[%clk 0:02:53]} 10. Bd3 {[%clk 0:02:50]}  Re8 {[%clk 0:02:53]} 11. O-O {[%clk 0:02:49]}  a6 {[%clk 0:02:50]} 12. a3 {[%clk 0:02:27]}  Be7 {[%clk 0:02:50]} 13. Rfe1 {[%clk 0:02:13]}  Ne4 {[%clk 0:02:48]} 14. Bxe4 {[%clk 0:01:56]}  Bxh4 {[%clk 0:02:47]} 15. Bh7+ {[%clk 0:01:53]}  Kh8 {[%clk 0:02:41]} 16. Bf5 {[%clk 0:01:53]}  Bf6 {[%clk 0:02:40]} 17. e4 {[%clk 0:01:52]}  dxe4 {[%clk 0:02:37]} 18. Nxe4 {[%clk 0:01:53]}  Be7 {[%clk 0:02:38]} 19. Qb3 {[%clk 0:01:33]}  Kg8 {[%clk 0:02:22]} 20. Rad1 {[%clk 0:01:26]}  Nf6 {[%clk 0:02:14]} 21. Bxc8 {[%clk 0:01:06]}  Qxc8 {[%clk 0:02:11]} 22. Ne5 {[%clk 0:01:05]}  Nd5 {[%clk 0:02:05]} 23. Nc3 {[%clk 0:01:05]}  Rd8 {[%clk 0:01:43]} 24. Nc4 {[%clk 0:00:52]}  Qc7 {[%clk 0:01:37]} 25. Nxd5 {[%clk 0:00:52]}  Rxd5 {[%clk 0:00:50]} 26. Nb6 {[%clk 0:00:51]}  Rad8 {[%clk 0:00:50]} 27. Nxd5 {[%clk 0:00:51]}  Rxd5 {[%clk 0:00:51]} 28. Re5 {[%clk 0:00:52]}  Rd7 {[%clk 0:00:48]} 29. Rde1 {[%clk 0:00:51]}  Bf6 {[%clk 0:00:47]} 30. Re8+ {[%clk 0:00:50]}  Kh7 {[%clk 0:00:47]} 31. Qc2+ {[%clk 0:00:42]}  g6 {[%clk 0:00:46]} 32. g3 {[%clk 0:00:33]}  Bxd4 {[%clk 0:00:45]} 33. Kg2 {[%clk 0:00:31]}  c5 {[%clk 0:00:45]} 34. R1e2 {[%clk 0:00:28]}  b5 {[%clk 0:00:38]} 35. h4 {[%clk 0:00:28]}  h5 {[%clk 0:00:38]} 36. Qe4 {[%clk 0:00:26]}  Kg7 {[%clk 0:00:38]} 37. Qa8 {[%clk 0:00:25]}  Rd6 {[%clk 0:00:33]} 38. Rg8+ {[%clk 0:00:17]}  Kf6 {[%clk 0:00:34]} 39. Ree8 {[%clk 0:00:18]}  Qc6+ {[%clk 0:00:32]} 40. Qxc6 {[%clk 0:00:18]}  Rxc6 {[%clk 0:00:33]} 41. Rc8 {[%clk 0:00:18]}  Re6 {[%clk 0:00:33]} 42. Rge8 {[%clk 0:00:18]}  Rxe8 {[%clk 0:00:20]} 43. Rxe8 {[%clk 0:00:17]}  Bxb2 {[%clk 0:00:21]} 44. Ra8 {[%clk 0:00:17]}  Ke5 {[%clk 0:00:18]} 45. Rxa6 {[%clk 0:00:17]}  Kd4 {[%clk 0:00:18]} 46. Kf3 {[%clk 0:00:17]}  Kd3 {[%clk 0:00:17]} 47. Rb6 {[%clk 0:00:15]}  c4 {[%clk 0:00:17]} 48. Rxb5 {[%clk 0:00:12]}  c3 {[%clk 0:00:17]} 49. Rd5+ {[%clk 0:00:11]}  Kc4 {[%clk 0:00:17]} 50. Rd7 {[%clk 0:00:11]}  c2 {[%clk 0:00:18]} 51. Rc7+ {[%clk 0:00:08]}  Kd3 {[%clk 0:00:18]} 52. Rd7+ {[%clk 0:00:06]}  Bd4 {[%clk 0:00:18]} 53. Rc7 {[%clk 0:00:05]}  Bc3 {[%clk 0:00:18]} 54. Rd7+ {[%clk 0:00:05]}  Kc4 {[%clk 0:00:19]} 55. Rc7+ {[%clk 0:00:05]}  Kb3 {[%clk 0:00:20]} 56. Rxf7 {[%clk 0:00:04]}  c1=Q {[%clk 0:00:20]} 57. Kg2 {[%clk 0:00:04]}  Qd1 {[%clk 0:00:19]} 58. Kh2 {[%clk 0:00:02]}  Qd5 {[%clk 0:00:19]} 59. Rf4 {[%clk 0:00:02]}  Be5 {[%clk 0:00:19]} 60. Rf8 {[%clk 0:00:02]}  Kxa3 {[%clk 0:00:19]} 61. Kg1 {[%clk 0:00:01]}  Bd4 {[%clk 0:00:18]} 62. Kh2 {[%clk 0:00:01]}  g5 {[%clk 0:00:18]} 0-1


[Site "https://www.chess.com"]

[Event "Titled Tuesday Blitz June 21 Early 2022"]
[White "Snehal, Bhosale"]
[Black "Nilssen, Ellen Fredericia"]
[WhiteFideId "5021995"]
[BlackFideId "1441230"]
[WhiteElo "2103"]
[BlackElo "2094"]
[Result "1-0"]
[Round "04"]
[TimeControl "180+1"]
[Date "2022.06.21"]
[WhiteClock "0:01:44"]
[BlackClock "0:01:17"]

1. d4 {[%clk 0:03:00]}  d5 {[%clk 0:02:56]} 2. c4 {[%clk 0:03:00]}  e6 {[%clk 0:02:56]} 3. Nf3 {[%clk 0:02:59]}  a6 {[%clk 0:02:56]} 4. Nc3 {[%clk 0:02:57]}  dxc4 {[%clk 0:02:55]} 5. a4 {[%clk 0:02:56]}  Nc6 {[%clk 0:02:52]} 6. e3 {[%clk 0:02:50]}  Na5 {[%clk 0:02:51]} 7. Ne5 {[%clk 0:02:48]}  c5 {[%clk 0:02:48]} 8. Nxc4 {[%clk 0:02:45]}  cxd4 {[%clk 0:02:40]} 9. exd4 {[%clk 0:02:35]}  Nf6 {[%clk 0:02:38]} 10. Bg5 {[%clk 0:02:32]}  Be7 {[%clk 0:02:37]} 11. Ne5 {[%clk 0:02:27]}  h6 {[%clk 0:02:30]} 12. Bh4 {[%clk 0:02:25]}  Nd5 {[%clk 0:02:28]} 13. Bxe7 {[%clk 0:02:22]}  Qxe7 {[%clk 0:02:29]} 14. Bd3 {[%clk 0:02:10]}  Qb4 {[%clk 0:02:11]} 15. O-O {[%clk 0:02:09]}  Nb3 {[%clk 0:01:58]} 16. Ra3 {[%clk 0:02:07]}  Nxd4 {[%clk 0:01:55]} 17. Nxd5 {[%clk 0:02:06]}  exd5 {[%clk 0:01:55]} 18. Nxf7 {[%clk 0:01:54]}  Kxf7 {[%clk 0:01:51]} 19. Qh5+ {[%clk 0:01:54]}  Kf6 {[%clk 0:01:42]} 20. Qg6+ {[%clk 0:01:49]}  Ke5 {[%clk 0:01:17]} 21. f4# {[%clk 0:01:44]} 1-0


[Site "https://www.chess.com"]